fUSD/lending_fUSD_20240502
["ID","MTS","AMOUNT","RATE_DAILY","PERIOD"]
[325293988,1714684255719,-500.0,0.0003041,2]
[325293989,1714684255728,-500.0,0.0003041,2]
[325293990,1714684255738,-500.0,0.0003041,2]
[325293991,1714684255748,-500.0,0.0003041,2]
[325293992,1714684255758,-500.0,0.0003041,2]
[325293993,1714684255768,-500.0,0.0003041,2]
[325293994,1714684255779,-823.08,0.0003041,2]
[325293995,1714684255789,-500.0,0.0003041,2]
[325293996,1714684255799,-500.0,0.0003041,2]
[325293997,1714684255808,-500.0,0.0003041,2]
[325293998,1714684255818,-500.0,0.0003041,2]
[325293999,1714684255827,-500.0,0.0003041,2]
[325294000,1714684255837,-500.0,0.0003041,2]
[325294001,1714684255847,-533.04,0.0003041,2]
[325294002,1714684255856,-506.71802472,0.0003041,2]
[325294003,1714684255867,-500.0,0.0003041,2]
[325294004,1714684255876,-500.0,0.0003041,2]
[325294005,1714684255887,-500.0,0.0003041,2]
[325294006,1714684255898,-540.03,0.0003041,2]
[325294007,1714684255908,-500.0,0.0003041,2]
[325294008,1714684255917,-500.0,0.0003041,2]
[325294009,1714684255926,-500.0,0.0003041,2]
[325294010,1714684255936,-500.0,0.0003041,2]
[325294011,1714684255945,-500.0,0.0003041,2]
[325294012,1714684255955,-500.0,0.0003041,2]
[325294013,1714684255964,-1155.82,0.0003041,2]
[325294014,1714684255973,-582.09,0.0003041,2]
[325294015,1714684255983,-891.56,0.0003041,2]
[325294016,1714684255993,-500.0,0.0003041,2]
[325294017,1714684256003,-1121.6,0.0003041,2]
[325294018,1714684256012,-500.0,0.0003041,2]
[325294019,1714684256022,-794.68,0.0003041,2]
[325294020,1714684256031,-500.0,0.0003041,2]
[325294021,1714684256041,-500.0,0.0003041,2]
[325294022,1714684256051,-500.0,0.0003041,2]
[325294023,1714684256060,-854.77,0.0003041,2]
[325294024,1714684256070,-500.0,0.0003041,2]
[325294025,1714684256079,-500.0,0.0003041,2]
[325294026,1714684256089,-500.0,0.0003041,2]
[325294027,1714684256098,-500.0,0.0003041,2]
[325294028,1714684256107,-540.32,0.0003041,2]
[325294029,1714684256117,-508.23472751,0.0003041,2]
[325294030,1714684256127,-500.0,0.0003041,2]
[325294031,1714684256138,-500.0,0.0003041,2]
[325294032,1714684256148,-735.6,0.0003041,2]
[325294033,1714684256159,-1006.44,0.0003041,2]
[325294034,1714684256168,-639.66,0.0003041,2]
[325294035,1714684256179,-500.0,0.0003041,2]
[325294036,1714684256189,-500.0,0.0003041,2]
[325294037,1714684256198,-500.0,0.0003041,2]
[325294038,1714684256209,-500.0,0.0003041,2]
[325294039,1714684256219,-500.0,0.0003041,2]
[325294040,1714684256228,-706.53,0.0003041,2]
[325294041,1714684256239,-500.0,0.0003041,2]
[325294042,1714684256248,-500.0,0.0003041,2]
[325294043,1714684256258,-941.86,0.0003041,2]
[325294044,1714684256268,-500.0,0.0003041,2]
[325294045,1714684256277,-607.15,0.0003041,2]
[325294046,1714684256287,-500.0,0.0003041,2]
[325294047,1714684256296,-500.0,0.0003041,2]
[325294048,1714684256306,-500.0,0.0003041,2]
[325294049,1714684256316,-500.0,0.0003041,2]
[325294050,1714684256324,-500.0,0.0003041,2]
[325294051,1714684256334,-500.0,0.0003041,2]
[325294052,1714684256344,-500.0,0.0003041,2]
[325294053,1714684256353,-500.0,0.0003041,2]
[325294054,1714684256362,-500.0,0.0003041,2]
[325294055,1714684256371,-771.92,0.0003041,2]
[325294056,1714684256380,-228.93143595,0.0003041,2]
[325294057,1714684256390,-513.24,0.0003041,2]
[325294058,1714684256399,-1060.77,0.0003041,2]
[325294059,1714684256408,-723.45,0.0003041,2]
[325294060,1714684256417,-500.0,0.0003041,2]
[325294061,1714684256427,-500.0,0.0003041,2]
[325294062,1714684256436,-594.8,0.0003041,2]
[325294063,1714684256445,-986.53,0.0003041,2]
[325294064,1714684256454,-500.0,0.0003041,2]
[325294065,1714684256463,-500.0,0.0003041,2]
[325294066,1714684256472,-1138.56,0.0003041,2]
[325294067,1714684256481,-500.0,0.0003041,2]
[325294068,1714684256491,-500.0,0.0003041,2]
[325294069,1714684256500,-500.0,0.0003041,2]
[325294070,1714684256510,-500.0,0.0003041,2]
[325294071,1714684256519,-800.93,0.0003041,2]
[325294072,1714684256528,-1087.13,0.0003041,2]
[325294073,1714684256538,-500.0,0.0003041,2]
[325294074,1714684256547,-500.0,0.0003041,2]
[325294075,1714684256556,-927.55,0.0003041,2]
[325294076,1714684256566,-500.0,0.0003041,2]
[325294077,1714684256575,-500.0,0.0003041,2]
[325294078,1714684256584,-500.0,0.0003041,2]
[325294079,1714684256593,-500.0,0.0003041,2]
[325294080,1714684256603,-500.0,0.0003041,2]
[325294081,1714684256612,-500.0,0.0003041,2]
[325294082,1714684256622,-500.0,0.0003041,2]
[325294083,1714684256631,-500.0,0.0003041,2]
[325294084,1714684256640,-500.0,0.0003041,2]
[325294085,1714684256650,-756.3,0.0003041,2]
[325294086,1714684256660,-500.0,0.0003041,2]
[325294087,1714684256669,-500.0,0.0003041,2]
[325294088,1714684256678,-500.0,0.0003041,2]
[325294089,1714684256687,-500.0,0.0003041,2]
[325294090,1714684256696,-500.0,0.0003041,2]
[325294091,1714684256705,-500.0,0.0003041,2]
[325294092,1714684256715,-500.0,0.0003041,2]
[325294093,1714684256724,-500.0,0.0003041,2]
[325294094,1714684256733,-500.0,0.0003041,2]
[325294095,1714684256743,-500.0,0.0003041,2]
[325294096,1714684256752,-500.0,0.0003041,2]
[325294097,1714684256762,-698.43,0.0003041,2]
[325294098,1714684256771,-500.0,0.0003041,2]
[325294099,1714684256780,-500.0,0.0003041,2]
[325294100,1714684256789,-500.0,0.0003041,2]
[325294101,1714684256798,-1301.48,0.0003041,2]
[325294102,1714684256808,-500.0,0.0003041,2]
[325294103,1714684256817,-788.54,0.0003041,2]
[325294104,1714684256827,-499.39562385,0.0003041,2]
[325294105,1714684256837,-500.0,0.0003041,2]
[325294106,1714684256846,-605.5,0.0003041,2]
[325294107,1714684256856,-1056.73,0.0003041,2]
[325294108,1714684256865,-719.4,0.0003041,2]
[325294109,1714684256874,-500.0,0.0003041,2]
[325294110,1714684256883,-500.0,0.0003041,2]
[325294111,1714684256892,-240.06490498,0.0003041,2]
[325294112,1714684256901,-500.0,0.0003041,2]
[325294113,1714684256911,-500.0,0.0003041,2]
[325294114,1714684256921,-500.0,0.0003041,2]
[325294115,1714684256931,-784.9,0.0003041,2]
[325294116,1714684256940,-1212.05,0.0003041,2]
[325294117,1714684256950,-500.0,0.0003041,2]
[325294118,1714684256959,-1047.97,0.0003041,2]
[325294119,1714684256969,-500.0,0.0003041,2]
[325294120,1714684256979,-500.0,0.0003041,2]
[325294121,1714684256988,-584.27,0.0003041,2]
[325294122,1714684256998,-925.06,0.0003041,2]
[325294123,1714684257010,-500.0,0.0003041,2]
[325294124,1714684257021,-514.37,0.0003041,2]
[325294125,1714684257031,-500.0,0.0003041,2]
[325294126,1714684257040,-892.8,0.0003041,2]
[325294127,1714684257049,-778.33,0.0003041,2]
[325294128,1714684257059,-500.0,0.0003041,2]
[325294129,1714684257068,-960.65,0.0003041,2]
[325294130,1714684257077,-868.71,0.0003041,2]
[325294131,1714684257087,-500.0,0.0003041,2]
[325294132,1714684257097,-702.37,0.0003041,2]
[325294133,1714684257107,-724.12,0.0003041,2]
[325294134,1714684257211,-500.0,0.0003041,2]
[325294135,1714684257220,-500.0,0.0003041,2]
[325294136,1714684257229,-1418.56,0.0003041,2]
[325294137,1714684257240,-500.0,0.0003041,2]
[325294138,1714684257249,-500.0,0.0003041,2]
[325294139,1714684257258,-500.0,0.0003041,2]
[325294140,1714684257268,-500.0,0.0003041,2]
[325294141,1714684257279,-500.0,0.0003041,2]
[325294142,1714684257288,-618.46,0.0003041,2]
[325294143,1714684257298,-500.0,0.0003041,2]
[325294144,1714684257309,-1231.89,0.0003041,2]
[325294145,1714684257318,-500.0,0.0003041,2]
[325294146,1714684257327,-500.0,0.0003041,2]
[325294147,1714684257336,-918.84,0.0003041,2]
[325294148,1714684257345,-500.0,0.0003041,2]
[325294149,1714684257355,-775.65,0.0003041,2]
[325294150,1714684257365,-757.58,0.0003041,2]
[325294151,1714684257373,-629.99,0.0003041,2]
[325294152,1714684257382,-629.34,0.0003041,2]
[325294153,1714684257391,-558.49,0.0003041,2]
[325294154,1714684257400,-1528.38,0.0003041,2]
[325294155,1714684257411,-500.0,0.0003041,2]
[325294156,1714684257420,-523.24,0.0003041,2]
[325294157,1714684257430,-651.04,0.0003041,2]
[325294158,1714684257439,-1177.49,0.0003041,2]
[325294159,1714684257448,-500.0,0.0003041,2]
[325294160,1714684257458,-500.0,0.0003041,2]
[325294161,1714684257467,-500.0,0.0003041,2]
[325294162,1714684257476,-503.93728113,0.0003041,2]
[325294163,1714684257485,-500.0,0.0003041,2]
[325294164,1714684257494,-500.0,0.0003041,2]
[325294165,1714684257503,-1015.49,0.0003041,2]
[325294166,1714684257513,-981.66,0.0003041,2]
[325294167,1714684257522,-500.0,0.0003041,2]
[325294168,1714684257531,-500.0,0.0003041,2]
[325294169,1714684257540,-500.0,0.0003041,2]
[325294170,1714684257549,-500.0,0.0003041,2]
[325294171,1714684257559,-580.33,0.0003041,2]
[325294172,1714684257568,-541.71,0.0003041,2]
[325294173,1714684257578,-500.0,0.0003041,2]
[325294174,1714684257587,-916.82,0.0003041,2]
[325294175,1714684257596,-843.53,0.0003041,2]
[325294176,1714684257606,-660.58,0.0003041,2]
[325294177,1714684257615,-550.15,0.0003041,2]
[325294178,1714684257627,-774.98,0.0003041,2]
[325294179,1714684257637,-1352.78,0.0003041,2]
[325294180,1714684257648,-702.88,0.0003041,2]
[325294181,1714684257658,-1216.47,0.0003041,2]
[325294182,1714684257670,-1653.56,0.0003041,2]
[325294183,1714684257679,-1049.81,0.0003041,2]
[325294184,1714684257689,-500.0,0.0003041,2]
[325294185,1714684257699,-500.0,0.0003041,2]
[325294186,1714684257708,-574.62,0.0003041,2]
[325294187,1714684257718,-568.38,0.0003041,2]
[325294188,1714684257727,-500.0,0.0003041,2]
[325294189,1714684257736,-545.78,0.0003041,2]
[325294190,1714684257745,-1348.11,0.0003041,2]
[325294191,1714684257756,-500.0,0.0003041,2]
[325294192,1714684257766,-1667.74,0.0003041,2]
[325294193,1714684257776,-1538.81,0.0003041,2]
[325294194,1714684257788,-1247.95,0.0003041,2]
[325294195,1714684257796,-500.0,0.0003041,2]
[325294196,1714684257805,-500.0,0.0003041,2]
[325294197,1714684257814,-564.36,0.0003041,2]
[325294198,1714684257823,-500.0,0.0003041,2]
[325294199,1714684257832,-158.86837007,0.0003041,2]
[325294200,1714684257843,-1357.49,0.0003041,2]
[325294201,1714684257852,-500.0,0.0003041,2]
[325294202,1714684257862,-500.0,0.0003041,2]
[325294203,1714684257873,-500.0,0.0003041,2]
[325294204,1714684257883,-1054.09,0.0003041,2]
[325294205,1714684257894,-500.0,0.0003041,2]
[325294206,1714684257904,-859.74,0.0003041,2]
[325294207,1714684257913,-1999.02,0.0003041,2]
[325294208,1714684257923,-500.3969994,0.0003041,2]
[325294209,1714684257934,-500.0,0.0003041,2]
[325294210,1714684257943,-500.0,0.0003041,2]
[325294211,1714684257953,-500.0,0.0003041,2]
[325294212,1714684257963,-1621.28,0.0003041,2]
[325294213,1714684257972,-1910.59,0.0003041,2]
[325294214,1714684257981,-683.57,0.0003041,2]
[325294215,1714684257990,-1479.23,0.0003041,2]
[325294216,1714684257999,-500.0,0.0003041,2]
[325294217,1714684258008,-545.18,0.0003041,2]
[325294218,1714684258018,-500.0,0.0003041,2]
[325294219,1714684258028,-500.0,0.0003041,2]
[325294220,1714684258042,-500.0,0.0003041,2]
[325294221,1714684258051,-500.0,0.0003041,2]
[325294222,1714684258060,-766.86,0.0003041,2]
[325294223,1714684258069,-725.03,0.0003041,2]
[325294224,1714684258080,-760.14,0.0003041,2]
[325294225,1714684258089,-500.0,0.0003041,2]
[325294226,1714684258098,-500.0,0.0003041,2]
[325294227,1714684258107,-2350.42,0.0003041,2]
[325294228,1714684258117,-584.42,0.0003041,2]
[325294229,1714684258128,-500.0,0.0003041,2]
[325294230,1714684258139,-500.0,0.0003041,2]
[325294231,1714684258148,-500.0,0.0003041,2]
[325294232,1714684258158,-500.0,0.0003041,2]
[325294233,1714684258167,-1429.38,0.0003041,2]
[325294234,1714684258177,-804.69,0.0003041,2]
[325294235,1714684258186,-1905.44,0.0003041,2]
[325294236,1714684258197,-500.0,0.0003041,2]
[325294237,1714684258210,-836.55,0.0003041,2]
[325294238,1714684258220,-898.08,0.0003041,2]
[325294239,1714684258230,-500.0,0.0003041,2]
[325294240,1714684258241,-709.45,0.0003041,2]
[325294241,1714684258251,-500.0,0.0003041,2]
[325294242,1714684258260,-845.87,0.0003041,2]
[325294243,1714684258270,-500.0,0.0003041,2]
[325294244,1714684258281,-500.0,0.0003041,2]
[325294245,1714684258290,-500.0,0.0003041,2]
[325294246,1714684258303,-1054.68,0.0003041,2]
[325294247,1714684258312,-500.0,0.0003041,2]
[325294248,1714684258322,-515.28,0.0003041,2]
[325294249,1714684258332,-500.0,0.0003041,2]
[325294250,1714684258341,-1356.15,0.0003041,2]
[325294251,1714684258351,-644.06,0.0003041,2]
[325294252,1714684258360,-1895.04,0.0003041,2]
[325294253,1714684258369,-500.0,0.0003041,2]
[325294254,1714684258379,-933.13,0.0003041,2]
[325294255,1714684258387,-500.0,0.0003041,2]
[325294256,1714684258397,-971.92,0.0003041,2]
[325294257,1714684258406,-500.0,0.0003041,2]
[325294258,1714684258415,-1184.35,0.0003041,2]
[325294259,1714684258424,-1106.89,0.0003041,2]
[325294260,1714684258433,-500.0,0.0003041,2]
[325294261,1714684258442,-1125.77,0.0003041,2]
[325294262,1714684258451,-1223.4,0.0003041,2]
[325294263,1714684258460,-705.8,0.0003041,2]
[325294264,1714684258469,-1264.44,0.0003041,2]
[325294265,1714684258478,-500.0,0.0003041,2]
[325294266,1714684258487,-583.59,0.0003041,2]
[325294267,1714684258496,-500.0,0.0003041,2]
[325294268,1714684258507,-500.0,0.0003041,2]
[325294269,1714684258517,-1478.84,0.0003041,2]
[325294270,1714684258527,-1000.0,0.0003041,2]
[325294271,1714684258540,-889.24,0.0003041,2]
[325294272,1714684258550,-500.0,0.0003041,2]
[325294273,1714684258561,-500.0,0.0003041,2]
[325294274,1714684258571,-500.0,0.0003041,2]
[325294275,1714684258581,-500.0,0.0003041,2]
[325294276,1714684258590,-500.0,0.0003041,2]
[325294277,1714684258599,-782.31,0.0003041,2]
[325294278,1714684258608,-744.18,0.0003041,2]
[325294279,1714684258618,-778.24,0.0003041,2]
[325294280,1714684258627,-500.0,0.0003041,2]
[325294281,1714684258637,-500.0,0.0003041,2]
[325294282,1714684258646,-2247.9,0.0003041,2]
[325294283,1714684258658,-545.5,0.0003041,2]
[325294284,1714684258669,-500.0,0.0003041,2]
[325294285,1714684258679,-500.0,0.0003041,2]
[325294286,1714684258690,-575.05,0.0003041,2]
[325294287,1714684258699,-1849.43,0.0003041,2]
[325294288,1714684258708,-864.58,0.0003041,2]
[325294289,1714684258724,-500.0,0.0003041,2]
[325294290,1714684258733,-923.01,0.0003041,2]
[325294291,1714684258743,-949.37,0.0003041,2]
[325294292,1714684258752,-500.0,0.0003041,2]
[325294293,1714684258761,-500.0,0.0003041,2]
[325294294,1714684258772,-500.0,0.0003041,2]
[325294295,1714684258784,-938.57,0.0003041,2]
[325294296,1714684258793,-1802.54,0.0003041,2]
[325294297,1714684258802,-500.0,0.0003041,2]
[325294298,1714684258813,-887.44,0.0003041,2]
[325294299,1714684258823,-500.0,0.0003041,2]
[325294300,1714684258835,-500.0,0.0003041,2]
[325294301,1714684258843,-500.0,0.0003041,2]
[325294302,1714684258853,-500.0,0.0003041,2]
[325294303,1714684258862,-500.0,0.0003041,2]
[325294304,1714684258872,-1273.62,0.0003041,2]
[325294305,1714684258884,-500.0,0.0003041,2]
[325294306,1714684258895,-500.0,0.0003041,2]
[325294307,1714684258905,-1063.9,0.0003041,2]
[325294308,1714684258914,-500.0,0.0003041,2]
[325294309,1714684258926,-593.64,0.0003041,2]
[325294310,1714684258935,-884.24,0.0003041,2]
[325294311,1714684258944,-1373.23,0.0003041,2]
[325294312,1714684258954,-1261.29,0.0003041,2]
[325294313,1714684258963,-982.94,0.0003041,2]
[325294314,1714684258972,-500.0,0.0003041,2]
[325294315,1714684258980,-1087.64,0.0003041,2]
[325294316,1714684258990,-717.7,0.0003041,2]
[325294317,1714684258999,-500.0,0.0003041,2]
[325294318,1714684259008,-500.0,0.0003041,2]
[325294319,1714684259017,-633.72,0.0003041,2]
[325294320,1714684259026,-500.0,0.0003041,2]
[325294321,1714684259039,-539.85,0.0003041,2]
[325294322,1714684259047,-765.2,0.0003041,2]
[325294323,1714684259056,-876.95,0.0003041,2]
[325294324,1714684259066,-761.24,0.0003041,2]
[325294325,1714684259074,-1007.68,0.0003041,2]
[325294326,1714684259084,-553.37,0.0003041,2]
[325294327,1714684259093,-500.0,0.0003041,2]
[325294328,1714684259102,-1940.06,0.0003041,2]
[325294329,1714684259111,-571.81,0.0003041,2]
[325294330,1714684259125,-500.0,0.0003041,2]
[325294331,1714684259135,-500.0,0.0003041,2]
[325294332,1714684259145,-500.0,0.0003041,2]
[325294333,1714684259154,-500.0,0.0003041,2]
[325294334,1714684259165,-500.0,0.0003041,2]
[325294335,1714684259175,-500.0,0.0003041,2]
[325294336,1714684259184,-1045.5,0.0003041,2]
[325294337,1714684259193,-1357.48,0.0003041,2]
[325294338,1714684259203,-500.0,0.0003041,2]
[325294339,1714684259213,-500.0,0.0003041,2]
[325294340,1714684259222,-1052.86,0.0003041,2]
[325294341,1714684259232,-918.66,0.0003041,2]
[325294342,1714684259241,-500.0,0.0003041,2]
[325294343,1714684259251,-584.99,0.0003041,2]
[325294344,1714684259260,-1887.28,0.0003041,2]
[325294345,1714684259271,-500.0,0.0003041,2]
[325294346,1714684259283,-500.0,0.0003041,2]
[325294347,1714684259293,-500.0,0.0003041,2]
[325294348,1714684259302,-500.0,0.0003041,2]
[325294349,1714684259311,-506.95,0.0003041,2]
[325294350,1714684259320,-500.0,0.0003041,2]
[325294351,1714684259328,-529.33,0.0003041,2]
[325294352,1714684259338,-694.6,0.0003041,2]
[325294353,1714684259347,-775.85,0.0003041,2]
[325294354,1714684259356,-500.0,0.0003041,2]
[325294355,1714684259365,-750.55,0.0003041,2]
[325294356,1714684259374,-500.0,0.0003041,2]
[325294357,1714684259383,-500.0,0.0003041,2]
[325294358,1714684259393,-500.0,0.0003041,2]
[325294359,1714684259402,-1747.6,0.0003041,2]
[325294360,1714684259411,-500.0,0.0003041,2]
[325294361,1714684259420,-500.0,0.0003041,2]
[325294362,1714684259429,-500.0,0.0003041,2]
[325294363,1714684259438,-1070.78,0.0003041,2]
[325294364,1714684259447,-500.0,0.0003041,2]
[325294365,1714684259456,-662.86,0.0003041,2]
[325294366,1714684259466,-1018.73,0.0003041,2]
[325294367,1714684259475,-770.54,0.0003041,2]
[325294368,1714684259484,-544.06,0.0003041,2]
[325294369,1714684259493,-895.63,0.0003041,2]
[325294370,1714684259502,-1285.63,0.0003041,2]
[325294371,1714684259511,-546.86,0.0003041,2]
[325294372,1714684259520,-500.0,0.0003041,2]
[325294373,1714684259530,-500.0,0.0003041,2]
[325294374,1714684259541,-500.0,0.0003041,2]
[325294375,1714684259550,-500.0,0.0003041,2]
[325294376,1714684259559,-1132.45,0.0003041,2]
[325294377,1714684259569,-500.0,0.0003041,2]
[325294378,1714684259578,-2194.28,0.0003041,2]
[325294379,1714684259587,-500.0,0.0003041,2]
[325294380,1714684259597,-500.0,0.0003041,2]
[325294381,1714684259606,-1031.33,0.0003041,2]
[325294382,1714684259615,-500.0,0.0003041,2]
[325294383,1714684259625,-500.0,0.0003041,2]
[325294384,1714684259634,-1318.14,0.0003041,2]
[325294385,1714684259643,-500.0,0.0003041,2]
[325294386,1714684259652,-1157.63,0.0003041,2]
[325294387,1714684259661,-500.0,0.0003041,2]
[325294388,1714684259670,-500.0,0.0003041,2]
[325294389,1714684259679,-500.0,0.0003041,2]
[325294390,1714684259688,-953.39,0.0003041,2]
[325294391,1714684259696,-1247.21,0.0003041,2]
[325294392,1714684259705,-500.0,0.0003041,2]
[325294393,1714684259716,-600.55,0.0003041,2]
[325294394,1714684259728,-1189.47,0.0003041,2]
[325294395,1714684259737,-500.0,0.0003041,2]
[325294396,1714684259746,-535.99,0.0003041,2]
[325294397,1714684259755,-500.0,0.0003041,2]
[325294398,1714684259764,-500.0,0.0003041,2]
[325294399,1714684259773,-946.82,0.0003041,2]
[325294400,1714684259786,-500.0,0.0003041,2]
[325294401,1714684259795,-1219.72,0.0003041,2]
[325294402,1714684259804,-500.0,0.0003041,2]
[325294403,1714684259814,-500.0,0.0003041,2]
[325294404,1714684259823,-500.0,0.0003041,2]
[325294405,1714684259831,-500.0,0.0003041,2]
[325294406,1714684259841,-1094.14,0.0003041,2]
[325294407,1714684259850,-500.0,0.0003041,2]
[325294408,1714684259859,-150.0,0.0003041,2]
[325294409,1714684259868,-500.0,0.0003041,2]
[325294410,1714684259877,-576.94,0.0003041,2]
[325294411,1714684259886,-572.24,0.0003041,2]
[325294412,1714684259895,-500.0,0.0003041,2]
[325294413,1714684259904,-500.0,0.0003041,2]
[325294414,1714684259914,-500.0,0.0003041,2]
[325294415,1714684259922,-500.0,0.0003041,2]
[325294416,1714684259931,-2026.8,0.0003041,2]
[325294417,1714684259940,-1557.97,0.0003041,2]
[325294418,1714684259949,-679.15,0.0003041,2]
[325294419,1714684259959,-743.42,0.0003041,2]
[325294420,1714684259968,-1206.68,0.0003041,2]
[325294421,1714684259977,-763.74,0.0003041,2]
[325294422,1714684259986,-966.4,0.0003041,2]
[325294423,1714684259995,-1519.58,0.0003041,2]
[325294424,1714684260004,-932.93,0.0003041,2]
[325294425,1714684260013,-743.87,0.0003041,2]
[325294426,1714684260023,-183.44905723,0.0003041,2]
[325294427,1714684260033,-524.81,0.0003041,2]
[325294428,1714684260042,-1288.75,0.0003041,2]
[325294429,1714684260052,-500.0,0.0003041,2]
[325294430,1714684260062,-510.21,0.0003041,2]
[325294431,1714684260071,-1205.07,0.0003041,2]
[325294432,1714684260080,-532.6,0.0003041,2]
[325294433,1714684260090,-1291.0,0.0003041,2]
[325294434,1714684260099,-841.43,0.0003041,2]
[325294435,1714684260108,-980.31,0.0003041,2]
[325294436,1714684260118,-500.0,0.0003041,2]
[325294437,1714684260129,-953.76,0.0003041,2]
[325294438,1714684260140,-969.83,0.0003041,2]
[325294439,1714684260149,-1572.57,0.0003041,2]
[325294440,1714684260158,-2244.4,0.0003041,2]
[325294441,1714684260168,-663.69,0.0003041,2]
[325294442,1714684260178,-500.0,0.0003041,2]
[325294443,1714684260188,-1403.75,0.0003041,2]
[325294444,1714684260198,-500.0,0.0003041,2]
[325294445,1714684260208,-500.0,0.0003041,2]
[325294446,1714684260218,-2146.81,0.0003041,2]
[325294447,1714684260228,-151.0,0.0003041,7]
[325294448,1714684260238,-500.0,0.0003041,2]
[325294449,1714684260248,-500.0,0.0003041,2]
[325294450,1714684260258,-502.41937764,0.0003041,2]
[325294451,1714684260267,-527.55,0.0003041,2]
[325294452,1714684260277,-500.0,0.0003041,2]
[325294453,1714684260287,-659.56,0.0003041,2]
[325294454,1714684260298,-500.0,0.0003041,2]
[325294455,1714684260308,-500.0,0.0003041,2]
[325294456,1714684260318,-500.0,0.0003041,2]
[325294457,1714684260327,-500.0,0.0003041,2]
[325294458,1714684260336,-648.05,0.0003041,2]
[325294459,1714684260346,-500.0,0.0003041,2]
[325294460,1714684260355,-500.0,0.0003041,2]
[325294461,1714684260364,-568.8,0.0003041,2]
[325294462,1714684260373,-2153.09,0.0003041,2]
[325294463,1714684260382,-151.0,0.0003041,7]
[325294464,1714684260391,-1509.05,0.0003041,2]
[325294465,1714684260401,-1351.42,0.0003041,2]
[325294466,1714684260410,-1194.38,0.0003041,2]
[325294467,1714684260419,-500.0,0.0003041,2]
[325294468,1714684260429,-1578.24,0.0003041,2]
[325294469,1714684260439,-151.0,0.0003041,7]
[325294470,1714684260448,-650.39,0.0003041,2]
[325294471,1714684260457,-1351.38,0.0003041,2]
[325294472,1714684260467,-610.87,0.0003041,2]
[325294473,1714684260476,-500.0,0.0003041,2]
[325294474,1714684260486,-798.34,0.0003041,2]
[325294475,1714684260495,-500.0,0.0003041,2]
[325294476,1714684260505,-710.61,0.0003041,2]
[325294477,1714684260515,-726.75,0.0003041,2]
[325294478,1714684260524,-753.7,0.0003041,2]
[325294479,1714684260534,-500.0,0.0003041,2]
[325294480,1714684260544,-500.0,0.0003041,2]
[325294481,1714684260553,-696.02,0.0003041,2]
[325294482,1714684260562,-500.0,0.0003041,2]
[325294483,1714684260572,-500.0,0.0003041,2]
[325294484,1714684260581,-500.0,0.0003041,2]
[325294485,1714684260591,-850.38,0.0003041,2]
[325294486,1714684260600,-978.78,0.0003041,2]
[325294487,1714684260609,-676.77,0.0003041,2]